bitfinex/quotes_BTCUSD_20250123
["timestamp","ask_amount","ask_price","bid_price","bid_amount"]
[1737662593379,0.00079642,103770.0,103760.0,1.17521224]
[1737662593587,0.00079642,103770.0,103760.0,0.74822729]
[1737662593788,0.00079642,103770.0,103760.0,0.75722729]
[1737662594415,0.00079642,103770.0,103760.0,0.76622729]
[1737662594631,0.00079642,103770.0,103760.0,0.76654531]
[1737662594814,0.00079642,103770.0,103760.0,0.8280952]
[1737662595024,0.00079642,103770.0,103760.0,1.09951484]
[1737662595181,0.00079642,103770.0,103760.0,1.09983286]
[1737662595842,0.00079642,103770.0,103760.0,1.09083286]
[1737662596010,0.00079642,103770.0,103760.0,1.09983286]
[1737662596793,0.00029925,103780.0,103770.0,0.00031802]
[1737662596990,0.00039506,103780.0,103770.0,0.73949531]
[1737662597206,0.00039506,103780.0,103770.0,0.8368426]
[1737662597806,0.00039506,103780.0,103770.0,0.9146426]
[1737662598006,0.00039506,103780.0,103770.0,0.9376426]
[1737662598488,0.00039506,103780.0,103770.0,0.9466426]
[1737662598725,0.00039506,103780.0,103770.0,0.9556426]
[1737662600172,0.00039506,103780.0,103770.0,0.96519509]
[1737662601034,0.00039506,103780.0,103770.0,0.96487707]
[1737662601237,0.00039506,103780.0,103770.0,0.96519509]
[1737662601567,0.00039506,103780.0,103770.0,0.99500593]
[1737662601929,0.00039506,103780.0,103770.0,0.96519509]
[1737662602922,0.00039506,103780.0,103770.0,0.96487707]
[1737662603755,0.00039506,103780.0,103770.0,0.96519509]
[1737662604210,0.00039506,103780.0,103770.0,0.96487707]
[1737662604674,0.0155607,103790.0,103780.0,0.173]
[1737662604896,0.0155607,103790.0,103780.0,1.10854026]
[1737662605327,0.00423344,103790.0,103780.0,1.10854026]
[1737662605566,1e-08,103790.0,103780.0,1.10854026]
[1737662605996,1e-08,103790.0,103780.0,1.13831936]
[1737662606173,1e-08,103790.0,103780.0,1.10854026]
[1737662606921,1e-08,103790.0,103780.0,1.12654026]
[1737662607356,1e-08,103790.0,103780.0,1.11754026]
[1737662607551,1e-08,103790.0,103780.0,1.15633033]
[1737662607792,1e-08,103790.0,103780.0,1.16533033]
[1737662608213,1e-08,103790.0,103780.0,1.13833033]
[1737662608416,0.06955972,103840.0,103810.0,0.00031802]
[1737662608651,0.00014907,103830.0,103820.0,0.49608495]
[1737662608851,0.00014907,103830.0,103820.0,1.08503224]
[1737662610142,0.00014907,103830.0,103820.0,1.08535026]
[1737662610506,0.00014907,103830.0,103820.0,1.09435026]
[1737662610727,0.00014907,103830.0,103820.0,1.10235026]
[1737662611094,0.00014907,103830.0,103820.0,1.10203224]
[1737662611606,0.00014907,103830.0,103820.0,1.10235026]
[1737662611827,0.00014907,103830.0,103820.0,1.10203224]
[1737662612228,0.00014907,103830.0,103820.0,1.10235026]
[1737662612575,0.00014907,103830.0,103820.0,1.10203224]
[1737662612775,0.00014907,103830.0,103820.0,0.99668495]
[1737662612915,0.00014907,103830.0,103820.0,1.00600297]
[1737662613136,0.06968198,103850.0,103830.0,0.15]
[1737662613137,0.05369077,103850.0,103830.0,0.15]
[1737662613376,0.05369077,103850.0,103830.0,0.73890729]
[1737662613576,0.02,103840.0,103830.0,0.64156]
[1737662614236,0.02,103840.0,103830.0,0.66119816]
[1737662615674,0.02029842,103840.0,103830.0,0.66119816]
[1737662615882,0.02029842,103840.0,103830.0,0.66319816]
[1737662617577,0.32124771,103840.0,103830.0,0.49356]
[1737662617752,0.16128919,103840.0,103830.0,0.49356]
[1737662617980,0.12759842,103840.0,103830.0,0.49356]
[1737662618753,0.17145842,103840.0,103830.0,0.49156]
[1737662620024,0.17145842,103840.0,103830.0,0.49256]
[1737662620760,0.36510771,103840.0,103830.0,0.49256]
[1737662621331,0.26880571,103840.0,103830.0,0.49256]
[1737662621480,0.17145842,103840.0,103830.0,0.49256]
[1737662623787,0.17145842,103840.0,103830.0,0.49156]
[1737662624134,0.17145842,103840.0,103830.0,0.49256]
[1737662624335,0.17145842,103840.0,103830.0,0.49156]
[1737662624723,0.17145842,103840.0,103830.0,0.49256]
[1737662625536,0.09145842,103840.0,103830.0,0.5244337]
[1737662625740,0.14514919,103840.0,103830.0,0.5244337]
[1737662626142,0.11145842,103840.0,103830.0,0.5244337]
[1737662626557,0.12514919,103840.0,103830.0,0.5234337]
[1737662626760,0.12514919,103840.0,103830.0,0.49256]
[1737662626970,0.09145842,103840.0,103830.0,0.49156]
[1737662627166,0.28510771,103840.0,103830.0,0.49156]
[1737662627418,0.28510771,103840.0,103830.0,0.49256]
[1737662627819,0.47810771,103840.0,103830.0,0.49156]
[1737662628021,0.13932,103820.0,103810.0,0.0001421]
[1737662628263,0.31666729,103820.0,103810.0,0.00029117]
[1737662628396,0.23466729,103820.0,103810.0,0.00029117]
[1737662628607,0.09734729,103820.0,103810.0,0.00029117]
[1737662628807,0.14120729,103820.0,103810.0,0.00029117]
[1737662629617,0.25752729,103820.0,103810.0,0.00029117]
[1737662629767,0.25752729,103820.0,103810.0,0.00129117]
[1737662629976,0.26052729,103820.0,103810.0,0.00029117]
[1737662630237,0.41052729,103820.0,103810.0,0.00029117]
[1737662630441,0.46052729,103820.0,103810.0,0.00129117]
[1737662631293,0.41052729,103820.0,103810.0,0.00129117]
[1737662631539,0.47322729,103820.0,103810.0,0.00129117]
[1737662632066,0.03369077,103780.0,103770.0,0.00979282]
[1737662632272,0.02,103770.0,103760.0,0.0821422]
[1737662632469,0.02,103770.0,103760.0,0.32948949]
[1737662632898,0.02,103770.0,103760.0,0.1501422]
[1737662633330,0.02,103770.0,103760.0,0.15023801]
[1737662633551,0.02,103770.0,103760.0,0.15923801]
[1737662635571,0.02,103770.0,103760.0,0.65009801]
[1737662635800,0.02,103770.0,103760.0,0.64109801]
[1737662635951,0.03369077,103780.0,103760.0,0.64209801]
[1737662636154,0.03369077,103780.0,103760.0,0.63309801]
[1737662636357,0.03369077,103780.0,103760.0,0.64565633]
[1737662636579,0.023,103770.0,103760.0,0.64565633]
[1737662637001,0.003,103770.0,103760.0,0.78671658]
[1737662637166,0.003,103770.0,103760.0,0.74000362]
[1737662637524,0.023,103770.0,103760.0,0.64265633]
[1737662638419,0.03669077,103770.0,103760.0,0.49465633]
[1737662638827,0.03669077,103770.0,103760.0,0.48309801]
[1737662639064,0.19371329,103770.0,103760.0,0.48209801]
[1737662639261,0.21371329,103770.0,103760.0,0.48509801]
[1737662639469,0.12034729,103770.0,103760.0,0.48509801]
[1737662639673,0.26941329,103770.0,103760.0,0.48509801]
[1737662640206,0.26341329,103770.0,103760.0,0.48209801]
[1737662640381,0.29841329,103770.0,103760.0,0.48309801]
[1737662640800,0.2997193,103770.0,103760.0,0.48209801]
[1737662641130,0.5997193,103770.0,103760.0,0.48209801]
[1737662641583,0.5947193,103770.0,103760.0,0.48209801]
[1737662642004,0.5997193,103770.0,103760.0,0.48209801]
[1737662642164,0.5714193,103770.0,103760.0,0.48309801]
[1737662642373,0.5664193,103770.0,103760.0,0.48209801]
[1737662642761,0.5664193,103770.0,103760.0,0.48309801]
[1737662642762,0.5804193,103770.0,103760.0,0.48309801]
[1737662642973,0.6804193,103770.0,103760.0,0.48309801]
[1737662643174,0.6254193,103770.0,103760.0,0.48309801]
[1737662643374,0.6254193,103770.0,103760.0,0.48209801]
[1737662643375,0.6574193,103770.0,103760.0,0.48209801]
[1737662643770,0.58411329,103770.0,103760.0,0.48209801]
[1737662643974,0.33104729,103770.0,103760.0,0.48309801]
[1737662644174,0.33104729,103770.0,103760.0,0.48209801]
[1737662644175,0.40741329,103770.0,103760.0,0.48209801]
[1737662644383,0.43041329,103770.0,103760.0,0.48209801]
[1737662644994,0.42541329,103770.0,103760.0,0.48209801]
[1737662645207,0.43241329,103770.0,103760.0,0.48309801]
[1737662645517,0.43241329,103770.0,103760.0,0.48209801]
[1737662645711,0.42541329,103770.0,103760.0,0.48209801]
[1737662645929,0.43941329,103770.0,103760.0,0.48309801]
[1737662646126,0.43041329,103770.0,103760.0,0.48309801]
[1737662646327,0.43041329,103770.0,103760.0,0.48209801]
[1737662646550,0.43941329,103770.0,103760.0,0.48309801]
[1737662647211,0.45941329,103770.0,103760.0,0.48309801]
[1737662647411,0.38971329,103770.0,103760.0,0.48309801]
[1737662647614,0.12034729,103770.0,103760.0,0.48309801]
[1737662648756,0.21671329,103770.0,103760.0,0.48309801]
[1737662648971,0.38671329,103770.0,103760.0,0.48309801]
[1737662649188,0.49755329,103770.0,103760.0,0.48309801]
[1737662649398,0.02,103740.0,103720.0,0.0001422]
[1737662649602,0.38675129,103730.0,103720.0,0.0001422]
[1737662649812,0.41675129,103730.0,103720.0,0.0001422]
[1737662650024,0.4450573,103730.0,103720.0,0.0001422]
[1737662650230,0.38675129,103730.0,103720.0,0.0001422]
[1737662650637,0.38675129,103730.0,103720.0,0.0011422]
[1737662651012,0.38675129,103730.0,103720.0,0.00063937]
[1737662651210,0.43675129,103730.0,103720.0,0.00163937]
[1737662651414,0.39575129,103730.0,103720.0,0.00163937]
[1737662651734,0.39575129,103730.0,103720.0,0.00063937]
[1737662652042,0.40475129,103730.0,103720.0,0.00163937]
[1737662652384,0.41075129,103730.0,103720.0,0.00263937]
[1737662653104,0.38675129,103730.0,103720.0,0.00063937]
[1737662653305,0.39175129,103730.0,103720.0,0.00063937]
[1737662653505,0.40075129,103730.0,103720.0,0.00163937]
[1737662653734,0.30434729,103730.0,103720.0,0.00163937]
[1737662654153,0.014,103730.0,103720.0,0.13013937]
[1737662654355,0.014,103730.0,103720.0,0.2405006]
[1737662654589,0.009,103730.0,103720.0,0.37748666]
[1737662654952,0.014,103730.0,103720.0,0.37748666]
[1737662655374,0.009,103730.0,103720.0,0.37748666]
[1737662655773,0.009,103730.0,103720.0,0.38148666]
[1737662656308,0.02,103740.0,103720.0,0.38048666]
[1737662656636,0.022,103730.0,103720.0,0.38048666]
[1737662656879,0.022,103730.0,103720.0,0.28313937]
[1737662656880,0.002,103730.0,103720.0,0.28313937]
[1737662657319,0.03369077,103740.0,103720.0,0.28313937]
[1737662657439,0.03369077,103740.0,103720.0,0.13313937]
[1737662657440,0.34374329,103740.0,103720.0,0.13313937]
[1737662657641,0.09734729,103730.0,103720.0,0.00163937]
[1737662657851,0.09734729,103730.0,103720.0,0.00363937]
[1737662658256,0.09934729,103730.0,103720.0,0.00363937]
[1737662658457,0.09934729,103730.0,103720.0,0.00063937]
[1737662658657,0.34575129,103730.0,103720.0,0.00063937]
[1737662658977,0.24934729,103730.0,103720.0,0.00063937]
[1737662659204,0.002,103730.0,103720.0,0.00063937]
[1737662659413,0.03569077,103730.0,103720.0,0.00063937]
[1737662660229,0.03369077,103730.0,103720.0,0.00063937]
[1737662660371,0.14003806,103730.0,103720.0,0.00163937]
[1737662660573,0.10634729,103730.0,103720.0,0.00163937]
[1737662660972,0.10834729,103730.0,103720.0,0.00163937]
[1737662663213,0.03369077,103720.0,103700.0,0.1408052]
[1737662663417,0.03369077,103720.0,103700.0,0.14095438]
[1737662663757,0.02,103710.0,103700.0,0.14095438]
[1737662664151,0.02,103720.0,103700.0,0.26739711]
[1737662664656,0.02,103720.0,103700.0,0.27339711]
[1737662664808,0.02,103720.0,103700.0,0.27239711]
[1737662665016,0.001,103710.0,103700.0,0.27939711]
[1737662665201,0.001,103710.0,103700.0,0.42939711]
[1737662666255,0.02,103720.0,103700.0,0.42239711]
[1737662666393,0.02,103720.0,103700.0,0.39330167]
[1737662666589,0.02,103720.0,103700.0,0.38930167]
[1737662667035,0.001,103710.0,103700.0,0.39730167]
[1737662667258,0.002,103710.0,103700.0,0.40330167]
[1737662667467,0.001,103710.0,103700.0,0.39430167]
[1737662667673,0.02,103720.0,103700.0,0.39330167]
[1737662667867,0.02,103720.0,103700.0,0.39430167]
[1737662668280,0.02,103720.0,103700.0,0.42936276]
[1737662668482,0.02,103720.0,103710.0,0.24734729]
[1737662668685,0.02,103730.0,103720.0,0.0829]
[1737662668925,0.03369077,103730.0,103720.0,0.0829]
[1737662669076,0.02,103730.0,103720.0,0.56494]
[1737662670519,0.029,103730.0,103720.0,0.56594]
[1737662670931,0.031,103730.0,103720.0,0.56594]
[1737662671576,0.03091878,103730.0,103720.0,0.56594]
[1737662674307,0.03091878,103730.0,103720.0,0.66328729]
[1737662674927,0.03091878,103730.0,103720.0,0.81342949]
[1737662675345,0.0312174,103730.0,103720.0,0.81342949]
[1737662676454,0.0312174,103730.0,103720.0,0.82285842]
[1737662679189,0.10864591,103730.0,103720.0,0.57551113]
[1737662679516,0.37804991,103730.0,103720.0,0.4831822]
[1737662680159,0.37604991,103730.0,103720.0,0.4821822]
[1737662680366,0.41090991,103730.0,103720.0,0.4821822]
[1737662680586,0.42390991,103730.0,103720.0,0.4831822]
[1737662681412,0.30450591,103730.0,103720.0,0.4831822]
[1737662681614,0.09084939,103730.0,103720.0,0.4831822]
[1737662682039,0.27090991,103730.0,103720.0,0.4831822]
[1737662682304,0.48174991,103730.0,103720.0,0.4831822]
[1737662682455,0.56324991,103730.0,103720.0,0.4831822]
[1737662682674,0.66324991,103730.0,103720.0,0.4831822]
[1737662682835,0.47540991,103730.0,103720.0,0.4831822]
[1737662683039,0.42090991,103730.0,103720.0,0.4831822]
[1737662683403,0.42090991,103730.0,103720.0,0.4821822]
[1737662683404,0.40790991,103730.0,103720.0,0.4821822]
[1737662683608,0.30550591,103730.0,103720.0,0.4821822]
[1737662684014,0.18419668,103730.0,103720.0,0.4821822]
[1737662684506,0.14150591,103730.0,103720.0,0.4821822]
[1737662684740,0.15050591,103730.0,103720.0,0.4821822]
[1737662684954,0.08684939,103730.0,103720.0,0.4821822]
[1737662685378,0.08684939,103730.0,103720.0,0.53040042]
[1737662685594,0.08684939,103730.0,103720.0,0.5306822]
[1737662685800,0.05315862,103730.0,103720.0,0.5306822]
[1737662686014,0.0780774,103730.0,103720.0,0.86072949]
[1737662686610,0.0640774,103730.0,103720.0,0.86072949]
[1737662686816,0.0750774,103730.0,103720.0,0.86072949]
[1737662687121,0.0660774,103730.0,103720.0,0.86072949]
[1737662687259,0.0640774,103730.0,103720.0,0.86072949]
[1737662687677,0.0650774,103730.0,103720.0,0.86572949]
[1737662687877,0.04515862,103730.0,103720.0,0.95230244]
[1737662688507,0.04515862,103730.0,103720.0,0.86572949]
[1737662688718,0.0650774,103730.0,103720.0,0.86572949]
[1737662688925,0.0650774,103730.0,103720.0,0.7683822]
[1737662689131,0.0640774,103730.0,103720.0,0.6133822]
[1737662689329,0.04415862,103730.0,103720.0,0.62295117]
[1737662689536,0.04515862,103730.0,103720.0,0.62695117]
[1737662689799,0.04615862,103730.0,103720.0,0.62695117]
[1737662690015,0.14350591,103730.0,103720.0,0.4821822]
[1737662690195,0.14150591,103730.0,103720.0,0.4821822]
[1737662690326,0.04615862,103730.0,103720.0,0.4861822]
[1737662690543,0.07984939,103730.0,103720.0,0.4861822]
[1737662690739,0.04415862,103730.0,103720.0,0.4821822]
[1737662690941,0.0242174,103730.0,103720.0,0.4821822]
[1737662691142,0.0242174,103730.0,103720.0,0.5297822]
[1737662691360,0.0202174,103730.0,103720.0,0.6061822]
[1737662691993,0.0222174,103730.0,103720.0,0.6061822]
[1737662692659,0.0292174,103730.0,103720.0,0.6061822]
[1737662692862,0.0292174,103730.0,103720.0,0.6101822]
[1737662693224,0.0202174,103730.0,103720.0,0.6101822]
[1737662693652,0.0212174,103730.0,103720.0,0.64222073]
[1737662693868,0.00129862,103730.0,103720.0,0.7601822]
[1737662694079,0.00129862,103730.0,103720.0,0.85752949]
[1737662694834,0.01991878,103750.0,103720.0,0.79743872]
[1737662695072,0.01991878,103750.0,103740.0,0.15]
[1737662695272,0.01991878,103750.0,103740.0,0.63197]
[1737662696105,0.02091878,103750.0,103740.0,0.63197]
[1737662696243,0.01991878,103750.0,103740.0,0.63197]
[1737662696644,0.01991878,103750.0,103740.0,0.63597]
[1737662696645,0.02091878,103750.0,103740.0,0.63597]
[1737662697737,0.13107577,103750.0,103740.0,0.48597]
[1737662697934,0.54836982,103750.0,103740.0,0.48597]
[1737662698284,0.57836982,103750.0,103740.0,0.48597]
[1737662698485,0.57966982,103750.0,103740.0,0.48197]
[1737662698842,0.41903229,103750.0,103740.0,0.48397]
[1737662699249,0.41903229,103750.0,103740.0,0.48197]
[1737662699450,0.41803229,103750.0,103740.0,0.48197]
[1737662699653,0.42803229,103750.0,103740.0,0.48197]
[1737662699859,0.58866982,103750.0,103740.0,0.48197]
[1737662700062,0.58736982,103750.0,103740.0,0.48197]
[1737662700362,0.59636982,103750.0,103740.0,0.48197]
[1737662700518,0.64022982,103750.0,103740.0,0.48197]
[1737662700943,0.64052886,103750.0,103740.0,0.48197]
[1737662701824,0.42989133,103750.0,103740.0,0.48197]
[1737662702045,0.33050633,103750.0,103740.0,0.48197]
[1737662702447,0.16050633,103750.0,103740.0,0.48197]
[1737662702664,0.1941971,103750.0,103740.0,0.48197]
[1737662702805,0.06315904,103750.0,103740.0,0.48197]
[1737662703006,0.08307782,103750.0,103740.0,0.534897]
[1737662703253,0.09684981,103750.0,103740.0,0.56407]
[1737662703461,0.06315904,103750.0,103740.0,0.56407]
[1737662703659,0.06315904,103750.0,103740.0,0.81141729]
[1737662704125,0.04415904,103750.0,103740.0,0.81141729]
[1737662704608,0.05215904,103750.0,103740.0,0.81141729]
[1737662704792,0.05215904,103750.0,103740.0,0.89891994]
[1737662704996,0.04815904,103750.0,103740.0,0.89891994]
[1737662705137,0.04815904,103750.0,103740.0,0.95021994]
[1737662705347,0.08415388,103780.0,103770.0,0.15]
[1737662705553,0.08465044,103780.0,103770.0,0.72917729]
[1737662705760,0.08465044,103780.0,103770.0,0.81666594]
[1737662705987,0.08465044,103780.0,103770.0,0.91507517]
[1737662706333,0.08465044,103780.0,103770.0,0.94606594]
[1737662706535,0.08565044,103780.0,103770.0,0.94606594]
[1737662707231,0.08665044,103780.0,103770.0,0.94606594]
[1737662707447,0.08465044,103780.0,103770.0,0.95506594]
[1737662707660,0.08565044,103780.0,103770.0,0.95506594]
[1737662708778,0.08665044,103780.0,103770.0,0.95706594]
[1737662708979,0.00249656,103780.0,103770.0,0.96662924]
[1737662710349,0.00149656,103780.0,103770.0,0.95762924]
[1737662710487,0.00049656,103780.0,103770.0,0.95562924]
[1737662710687,0.00149656,103780.0,103770.0,0.7797933]
[1737662711049,0.00149656,103780.0,103770.0,0.49083]
[1737662711687,0.00049656,103780.0,103770.0,0.48183]
[1737662711875,0.03418733,103780.0,103770.0,0.48183]
[1737662712072,0.03418733,103780.0,103770.0,0.48583]
[1737662712297,0.0017956,103780.0,103770.0,0.48783]
[1737662712782,0.0007956,103780.0,103770.0,0.48583]
[1737662712930,0.0007956,103780.0,103770.0,0.77967729]
[1737662713286,0.0017956,103780.0,103770.0,0.77967729]
[1737662714010,0.03548637,103780.0,103770.0,0.68233]
[1737662714830,0.0017956,103780.0,103770.0,0.77967729]
[1737662715027,0.0017956,103780.0,103770.0,0.93620859]
[1737662715924,0.0017956,103780.0,103770.0,0.95251782]
[1737662716134,0.0017956,103780.0,103770.0,0.97551782]
[1737662716378,0.00029842,103810.0,103780.0,0.16630923]
[1737662716586,0.00034807,103810.0,103800.0,0.0805]
[1737662716720,0.00034807,103810.0,103800.0,0.72998473]
[1737662717120,0.00034807,103810.0,103800.0,0.6317]
[1737662717536,0.03403884,103810.0,103800.0,0.4817]
[1737662717786,0.00934807,103810.0,103800.0,0.4817]
[1737662719383,0.10969536,103810.0,103800.0,0.4817]
[1737662720028,0.53966189,103810.0,103800.0,0.4817]
[1737662720765,1.14291189,103810.0,103800.0,0.4817]
[1737662720985,1.24141189,103810.0,103800.0,0.4269]
[1737662721183,0.63437189,103810.0,103800.0,0.4279]
[1737662721402,0.94337189,103810.0,103800.0,0.4279]
[1737662721750,0.93437189,103810.0,103800.0,0.001]
[1737662721955,0.94337189,103810.0,103800.0,0.001]
[1737662722430,0.74337189,103810.0,103800.0,0.001]
[1737662722799,0.03369077,103770.0,103740.0,0.00950762]
[1737662723009,0.116341,103800.0,103750.0,0.24734729]
[1737662723010,0.15,103800.0,103750.0,0.24734729]
[1737662723216,0.06015842,103810.0,103760.0,0.2726]
[1737662723424,0.03369077,103790.0,103770.0,0.24734729]
[1737662723548,0.03369077,103800.0,103770.0,0.15]
[1737662723744,0.03369077,103790.0,103770.0,0.63183]
[1737662723959,0.03383967,103790.0,103770.0,0.63183]
[1737662724782,0.03383967,103790.0,103770.0,0.6319723]
[1737662724999,0.04283967,103790.0,103770.0,0.6319723]
[1737662725195,0.03383967,103790.0,103770.0,0.6319723]
[1737662725950,0.0001489,103790.0,103770.0,0.80577682]
[1737662726078,0.0061489,103790.0,103770.0,0.80577682]
[1737662726279,0.0061489,103790.0,103780.0,0.0762]
[1737662726528,0.0061489,103790.0,103780.0,0.85453729]
[1737662727853,0.0001489,103790.0,103780.0,0.87084652]
[1737662728088,0.0001489,103790.0,103780.0,0.96769113]
[1737662728289,0.0031489,103790.0,103780.0,0.96769113]
[1737662728505,0.0001489,103790.0,103780.0,0.96769113]
[1737662728705,0.0001489,103790.0,103780.0,0.87084652]
[1737662728905,0.0011489,103790.0,103780.0,0.87484652]
[1737662729537,0.0011489,103790.0,103780.0,0.87184652]
[1737662729912,0.0021489,103790.0,103780.0,0.88084652]
[1737662730110,0.0021489,103790.0,103780.0,0.97379261]
[1737662730723,0.00029883,103800.0,103780.0,0.97379261]
[1737662730928,0.00029883,103800.0,103790.0,0.43205652]
[1737662731138,0.04415842,103810.0,103800.0,0.29170923]
[1737662731348,0.04415842,103810.0,103800.0,0.87075652]
[1737662731554,0.04415842,103810.0,103800.0,0.94582294]
[1737662731756,0.04415842,103810.0,103800.0,0.96213217]
[1737662732073,0.00029842,103810.0,103800.0,0.96213217]
[1737662732208,0.00029842,103810.0,103800.0,0.96521208]
[1737662732841,0.00029842,103810.0,103800.0,0.96921208]
[1737662733493,0.00029842,103840.0,103800.0,0.98887835]
[1737662733712,0.00029842,103840.0,103810.0,0.09734729]
[1737662733713,0.00044748,103840.0,103810.0,0.09734729]
[1737662733873,0.00044748,103840.0,103820.0,0.15]
[1737662734087,0.03413825,103840.0,103820.0,0.72894729]
[1737662734458,0.00044748,103840.0,103820.0,0.72894729]
[1737662734865,0.00044748,103840.0,103830.0,0.2776]
[1737662735064,0.00044748,103840.0,103830.0,0.75916]
[1737662735310,0.00044748,103840.0,103830.0,0.84481073]
[1737662735904,0.00444748,103840.0,103830.0,0.84788929]
[1737662736461,0.01344748,103840.0,103830.0,0.94623658]
[1737662736911,0.01344748,103840.0,103830.0,0.86058585]
[1737662737313,0.01244748,103840.0,103830.0,0.86058585]
[1737662737942,0.01274631,103840.0,103830.0,0.86058585]
[1737662739234,0.01274631,103840.0,103830.0,0.62303918]
[1737662739481,0.04643708,103840.0,103830.0,0.62303918]
[1737662739678,0.04643708,103840.0,103830.0,0.6853431]
[1737662740447,0.04643708,103840.0,103830.0,0.62303918]
[1737662740650,0.01274631,103840.0,103830.0,0.48563856]
[1737662740852,0.1100936,103840.0,103830.0,0.48563856]
[1737662740964,0.01274631,103840.0,103830.0,0.48563856]
[1737662741370,0.116283,103860.0,103830.0,0.48563856]
[1737662741639,0.09734729,103860.0,103830.0,0.51165627]
[1737662741829,0.03369077,103840.0,103830.0,0.51065627]
[1737662742035,0.009,103840.0,103830.0,0.51165627]
[1737662742270,0.03103806,103860.0,103830.0,0.51065627]
[1737662742416,0.02029904,103870.0,103830.0,0.60800356]
[1737662742417,0.02,103870.0,103830.0,0.60800356]
[1737662742637,0.009,103860.0,103830.0,0.60900356]
[1737662742866,0.009,103860.0,103830.0,0.60800356]
[1737662743012,0.49945053,103880.0,103830.0,0.60800356]
[1737662743013,0.02,103880.0,103840.0,0.09734729]
[1737662743214,0.17125541,103880.0,103840.0,0.63965765]
[1737662743413,0.22125541,103880.0,103840.0,0.63965765]
[1737662743613,0.20960275,103880.0,103840.0,0.65965765]
[1737662743819,0.20960275,103880.0,103840.0,0.59885729]
[1737662744031,0.10960275,103880.0,103840.0,0.59885729]
[1737662744232,0.05,103880.0,103840.0,0.59885729]
[1737662744681,0.44942253,103890.0,103840.0,0.72785729]
[1737662744912,0.009,103860.0,103850.0,0.17]
[1737662745131,0.60751215,103910.0,103850.0,0.74880729]
[1737662745337,0.023,103900.0,103850.0,0.74930388]
[1737662745478,0.006,103880.0,103850.0,0.84627302]
[1737662745883,0.006,103880.0,103860.0,0.00319981]
[1737662746086,0.70934853,103910.0,103860.0,0.6019671]
[1737662746087,0.26653053,103910.0,103860.0,0.6019671]
[1737662746282,0.10589,103910.0,103860.0,0.6019671]
[1737662746476,0.096237,103910.0,103870.0,0.0777]
[1737662746699,0.096237,103910.0,103870.0,0.62703671]
[1737662746700,0.49934953,103910.0,103870.0,0.62703671]
[1737662746895,0.49934953,103910.0,103870.0,0.55907]
[1737662747223,0.096241,103910.0,103870.0,0.55907]
[1737662747429,0.66078228,103920.0,103870.0,0.72391729]
[1737662747625,0.47441669,103920.0,103870.0,0.72391729]
[1737662747831,0.67064669,103920.0,103870.0,0.72391729]
[1737662748136,0.76311569,103920.0,103870.0,0.796629]
[1737662748342,0.76311569,103920.0,103870.0,0.77582934]
[1737662748343,0.59669882,103910.0,103870.0,0.77582934]
[1737662748490,0.25688453,103900.0,103870.0,0.77582934]
[1737662748687,0.78918882,103910.0,103870.0,0.79682934]
[1737662748899,0.78918882,103910.0,103870.0,0.79782934]
[1737662749310,0.096247,103900.0,103870.0,0.68048205]
[1737662749511,0.09734729,103900.0,103880.0,0.00294926]
[1737662750465,0.338721,103910.0,103880.0,0.00294926]
[1737662750641,0.00169,108480.0,104040.0,0.26643252]
[1737662750837,0.00169,108480.0,103880.0,0.15294926]
[1737662750838,0.288717,103910.0,103890.0,0.002821]
[1737662751045,0.198357,103900.0,103890.0,0.096255]
[1737662751242,0.096229,103920.0,103890.0,0.096255]
[1737662751243,0.04386,103910.0,103900.0,0.09923715]
[1737662751445,0.04386,103910.0,103900.0,0.096246]
[1737662751446,0.242217,103910.0,103900.0,0.096246]
[1737662751824,0.242217,103910.0,103900.0,0.09923715]
[1737662752627,0.242217,103910.0,103900.0,0.10023715]
[1737662754149,0.25183449,103910.0,103900.0,0.10023715]
[1737662754623,0.16623662,103910.0,103900.0,0.10023715]
[1737662754822,0.16089128,103910.0,103900.0,1.00169444]
[1737662755429,0.16089128,103910.0,103900.0,0.85334715]
[1737662755707,0.16089128,103910.0,103900.0,0.85434715]
[1737662756046,0.16089128,103910.0,103900.0,0.85334715]
[1737662756249,0.16089128,103910.0,103900.0,0.95169444]
[1737662756678,0.16089128,103910.0,103900.0,1.00169444]
[1737662756879,0.16089128,103910.0,103900.0,0.95169444]
[1737662757317,0.20475128,103910.0,103900.0,0.95169444]
[1737662757837,0.20475128,103910.0,103900.0,0.95069444]
[1737662758332,0.20475128,103910.0,103900.0,0.70434715]
[1737662758560,0.20475128,103910.0,103900.0,0.58044715]
[1737662758675,0.19513379,103910.0,103900.0,0.58144715]
[1737662759592,0.19513379,103910.0,103900.0,0.58044715]
[1737662761596,0.19513379,103910.0,103900.0,0.58144715]
[1737662761810,0.19513379,103910.0,103900.0,0.58044715]
[1737662762160,0.19513379,103910.0,103900.0,0.58144715]
[1737662762583,0.29248108,103910.0,103900.0,0.58144715]
[1737662763674,0.19513379,103910.0,103900.0,0.58144715]
[1737662763911,0.19513379,103910.0,103900.0,0.62144887]
[1737662764128,0.19513379,103910.0,103900.0,0.84879444]
[1737662764331,0.19513379,103910.0,103900.0,0.89879444]
[1737662764551,0.19513379,103910.0,103900.0,0.58144715]
[1737662765380,0.19513379,103910.0,103900.0,0.58044715]
[1737662765712,0.19513379,103910.0,103900.0,0.58144715]
[1737662765935,0.19513379,103910.0,103900.0,0.58044715]
[1737662766306,0.19513379,103910.0,103900.0,0.67879444]
[1737662766510,0.19513379,103910.0,103900.0,0.69387039]
[1737662766705,0.19513379,103910.0,103900.0,1.02369444]
[1737662767553,0.19513379,103910.0,103900.0,1.02269444]
[1737662767826,0.18765458,103910.0,103900.0,1.02269444]
[1737662768031,0.06544985,103910.0,103900.0,1.02369444]
[1737662768209,8.5e-07,103910.0,103900.0,1.14404173]
[1737662768550,0.0001421,103920.0,103910.0,0.441137]
[1737662768726,0.00029099,103920.0,103910.0,1.01967429]
[1737662768930,0.00029099,103920.0,103910.0,1.02264386]
[1737662769165,0.60368057,104000.0,103970.0,0.096174]
[1737662769370,0.09734729,103990.0,103970.0,0.288526]
[1737662769915,0.09734729,103990.0,103970.0,0.480889]
[1737662770279,0.2889665,104000.0,103970.0,0.3847]
[1737662770426,0.38631379,104000.0,103980.0,0.096172]
[1737662770849,0.09784379,104000.0,103980.0,0.288516]
[1737662771049,0.11013314,104000.0,103980.0,0.48086]
[1737662771365,0.11013314,104000.0,103990.0,0.096163]
[1737662771366,0.01278585,104000.0,103990.0,0.096163]
[1737662771755,0.01278585,104000.0,103980.0,0.48184]
[1737662772162,0.01278585,104000.0,103980.0,0.289497]
[1737662772366,0.39859414,104000.0,103980.0,0.0119174]
[1737662772595,0.39859414,104000.0,103990.0,0.00292864]
[1737662773030,0.39859414,104000.0,103980.0,0.09109964]
[1737662773238,0.39859414,104000.0,103990.0,0.00280661]
[1737662773463,0.20628714,104000.0,103990.0,0.00280661]